fUSD/lending_fUSD_20251229
["ID","MTS","AMOUNT","RATE_DAILY","PERIOD"]
[400044370,1767049843881,-366.4,0.00030137,5]
[400044372,1767049843891,-415.8,0.00030137,3]
[400044374,1767049843900,-305.4,0.00030137,3]
[400044376,1767049843910,-389.2,0.00030137,7]
[400044379,1767049843920,-312.0,0.00030137,2]
[400044381,1767049843929,-395.0,0.00030137,4]
[400044383,1767049843939,-153.0,0.000302,30]
[400044385,1767049843949,-660.04,0.00030356,2]
[400044387,1767049843960,-660.04,0.00030356,2]
[400044389,1767049843969,-652.17603394,0.0003094,2]
[400044391,1767049843978,-6481.47369544,0.0003094,2]
[400044393,1767049843988,-1174.84828301,0.00031363,2]
[400044395,1767049843998,-160.85,0.00031723,30]
[400044396,1767049844008,-2000.0,0.000318,2]
[400044398,1767049844017,-199.15,0.00032137,2]
[400044401,1767049844029,-150.0,0.00032137,2]
[400044403,1767049844038,-1240.09,0.00032137,2]
[400044404,1767049844047,-170.94,0.00032137,2]
[400044406,1767049844056,-250.79,0.00032137,2]
[400044408,1767049844066,-150.77,0.00032137,2]
[400044410,1767049844076,-150.0,0.00032137,2]
[400044412,1767049844085,-1221.52,0.00032137,2]
[400044413,1767049844094,-150.0,0.00032137,2]
[400044415,1767049844103,-178.66,0.00032137,2]
[400044418,1767049844116,-150.0,0.00032137,2]
[400044419,1767049844125,-170.94,0.00032137,2]
[400044421,1767049844134,-170.94,0.00032137,2]
[400044423,1767049844143,-178.66,0.00032137,2]
[400044424,1767049844153,-150.0,0.00032137,2]
[400044425,1767049844162,-150.0,0.00032137,2]
[400044426,1767049844170,-150.0,0.00032137,2]
[400044428,1767049844179,-178.66,0.00032137,2]
[400044430,1767049844188,-1221.52,0.00032137,2]
[400044432,1767049844197,-158.05,0.00032137,2]
[400044434,1767049844206,-170.94,0.00032137,2]
[400044435,1767049844215,-150.0,0.00032137,2]
[400044436,1767049844224,-178.66,0.00032137,2]
[400044437,1767049844234,-170.94,0.00032137,2]
[400044438,1767049844243,-150.0,0.00032137,2]
[400044439,1767049844252,-347.14482896,0.0003216,2]
[400044440,1767049844262,-461.73123326,0.00032311,7]
[400044441,1767049844272,-428.75043089,0.00032402,7]
[400044442,1767049844281,-178.66,0.00032959,2]
[400044443,1767049844291,-170.94,0.00032959,2]
[400044444,1767049844300,-150.0,0.00032959,2]
[400044445,1767049844310,-170.94,0.00032959,2]
[400044446,1767049844319,-178.66,0.00032959,2]
[400044447,1767049844328,-150.0,0.00032959,2]
[400044448,1767049844337,-178.66,0.00032959,2]
[400044449,1767049844347,-170.94,0.00032959,2]
[400044450,1767049844356,-178.66,0.00032959,2]
[400044451,1767049844365,-170.94,0.00032959,2]
[400044452,1767049844375,-150.0,0.00032959,2]
[400044453,1767049844384,-178.66,0.00032959,2]
[400044454,1767049844393,-150.0,0.00032959,2]
[400044455,1767049844402,-150.0,0.00032959,2]
[400044456,1767049844411,-178.66,0.00032959,2]
[400044457,1767049844421,-150.0,0.00032959,2]
[400044458,1767049844430,-178.66,0.00032959,2]
[400044459,1767049844439,-150.0,0.00032959,2]
[400044460,1767049844448,-178.66,0.00032959,2]
[400044461,1767049844459,-150.0,0.00032959,2]
[400044462,1767049844468,-178.66,0.00032959,2]
[400044463,1767049844477,-178.66,0.00032959,2]
[400044464,1767049844487,-45480.95463875,0.00033,2]
[400044465,1767049844496,-1988.96156541,0.00033,2]
[400044466,1767049844507,-1907.27647102,0.00033,2]
[400044467,1767049844518,-152.85154455,0.00033,2]
[400044468,1767049844529,-16005.48341249,0.00033,13]
[400044469,1767049844539,-12712.42810976,0.00033,13]
[400044470,1767049844550,-226.46,0.00033165,2]
[400044471,1767049844560,-435.43769329,0.00033312,2]
[400044472,1767049844570,-153.0,0.000338,30]
[400044473,1767049844581,-151.0,0.00033898,14]
[400044474,1767049844592,-652.17603394,0.00033901,2]
[400044475,1767049844604,-6481.47369544,0.00033901,2]
[400044476,1767049844614,-150.93114477,0.00033901,2]
[400044477,1767049844624,-505.70087023,0.00033939,60]
[400044478,1767049844634,-481.65,0.00034767,2]
[400044479,1767049844643,-481.65,0.00034767,2]
[400044480,1767049844654,-481.65,0.00034767,2]
[400044481,1767049844663,-481.65,0.00034767,2]
[400044482,1767049844672,-481.65,0.00034767,2]
[400044483,1767049844682,-481.65,0.00034767,2]
[400044484,1767049844692,-481.65,0.00034767,2]
[400044485,1767049844701,-481.65,0.00034767,2]
[400044486,1767049844710,-481.65,0.00034767,2]
[400044487,1767049844720,-481.65,0.00034767,2]
[400044488,1767049844729,-481.65,0.00034767,2]
[400044489,1767049844739,-481.65,0.00034767,2]
[400044490,1767049844749,-481.65,0.00034767,2]
[400044491,1767049844758,-481.65,0.00034767,2]
[400044492,1767049844768,-481.65,0.00034767,2]
[400044493,1767049844777,-481.65,0.00034767,2]
[400044494,1767049844787,-150.0,0.00035,2]
[400044495,1767049844796,-481.65,0.00035151,2]
[400044496,1767049844806,-481.65,0.00035151,2]
[400044497,1767049844815,-1174.84828301,0.00035169,2]
[400044498,1767049844826,-1398.0,0.000355,2]
[400044499,1767049844835,-999.0,0.00035616,120]
[400044500,1767049844846,-153.28459,0.00035888,30]
[400044501,1767049844857,-153.44,0.00035908,2]
[400044502,1767049844867,-300.0,0.00035917,10]
[400044503,1767049844876,-666.0,0.00035917,30]
[400044504,1767049844886,-554.77,0.00035918,2]
[400044505,1767049844895,-554.77,0.00035918,2]
[400044506,1767049844905,-554.77,0.00035918,2]
[400044507,1767049844915,-1109.3,0.00035918,2]
[400044508,1767049844924,-554.77,0.00035918,2]
[400044509,1767049844934,-554.77,0.00035918,2]
[400044510,1767049844943,-554.77,0.00035918,2]
[400044511,1767049844954,-554.77,0.00035918,2]
[400044512,1767049844964,-554.77,0.00035918,2]
[400044513,1767049845130,-554.77,0.00035918,2]
[400044514,1767049845159,-554.77,0.00035918,2]
[400044515,1767049845169,-554.77,0.00035918,2]
[400044516,1767049845178,-554.77,0.00035918,2]
[400044517,1767049845188,-554.77,0.00035918,2]
[400044518,1767049845197,-554.77,0.00035918,2]
[400044519,1767049845206,-554.77,0.00035918,2]
[400044520,1767049845216,-554.77,0.00035918,2]
[400044521,1767049845226,-554.77,0.00035918,2]
[400044522,1767049845237,-554.77,0.00035918,2]
[400044523,1767049845247,-554.77,0.00035918,2]
[400044524,1767049845257,-554.77,0.00035918,2]
[400044525,1767049845266,-554.77,0.00035918,2]
[400044526,1767049845275,-554.77,0.00035918,2]
[400044527,1767049845285,-554.77,0.00035918,2]
[400044528,1767049845294,-554.77,0.00035918,2]
[400044529,1767049845304,-554.77,0.00035918,2]
[400044530,1767049845313,-554.77,0.00035918,2]
[400044531,1767049845324,-554.77,0.00035918,2]
[400044532,1767049845334,-554.77,0.00035918,2]
[400044533,1767049845343,-554.77,0.00035918,2]
[400044534,1767049845353,-554.77,0.00035918,2]
[400044535,1767049845362,-554.77,0.00035918,2]
[400044536,1767049845372,-554.77,0.00035918,2]
[400044537,1767049845382,-554.77,0.00035918,2]
[400044538,1767049845391,-554.77,0.00035918,2]
[400044539,1767049845401,-554.77,0.00035918,2]
[400044540,1767049845410,-554.77,0.00035918,2]
[400044541,1767049845420,-554.77,0.00035918,2]
[400044542,1767049845429,-554.77,0.00035918,2]
[400044543,1767049845439,-554.77,0.00035918,2]
[400044544,1767049845448,-554.77,0.00035918,2]
[400044545,1767049845457,-554.77,0.00035918,2]
[400044546,1767049845468,-1091.19,0.00036,30]
[400044547,1767049845479,-659.15029771,0.00036,2]
[400044548,1767049845489,-160.85,0.00036049,30]
[400044549,1767049845499,-153.28459,0.00036088,30]
[400044550,1767049845509,-153.28459,0.00036288,30]
[400044551,1767049845518,-153.28459,0.00036488,30]
[400044552,1767049845527,-194.09,0.000365,14]
[400044553,1767049845537,-153.0,0.000365,30]
[400044554,1767049845546,-153.28459,0.00036688,30]
[400044555,1767049845556,-1091.19,0.0003672,30]
[400044556,1767049845565,-652.17603394,0.00036861,2]
[400044557,1767049845583,-6481.47369544,0.00036861,2]
[400044558,1767049845596,-153.28459,0.00036888,30]
[400044559,1767049845606,-510.9486,0.00036888,7]
[400044560,1767049845618,-1002.198113,0.00036986,31]
[400044561,1767049845630,-1002.198113,0.00036986,31]
[400044562,1767049845640,-1002.198113,0.00036986,31]
[400044563,1767049845650,-1002.198113,0.00036986,31]
[400044564,1767049845662,-151.0,0.00036986,10]
[400044565,1767049845672,-151.0,0.00036986,31]
[400044566,1767049845684,-208.95938,0.00036986,31]
[400044567,1767049845695,-208.95938,0.00036986,31]
[400044568,1767049845705,-208.95938,0.00036986,31]
[400044569,1767049845715,-208.95938,0.00036986,31]
[400044570,1767049845726,-151.0,0.00036986,31]
[400044571,1767049845737,-159.299496,0.00036986,31]
[400044572,1767049845748,-151.0,0.00036986,31]
[400044573,1767049845760,-151.0,0.00036986,31]
[400044574,1767049845772,-151.0,0.00036986,31]
[400044575,1767049845782,-151.0,0.00036986,31]
[400044576,1767049845792,-151.0,0.00036986,31]
[400044577,1767049845803,-151.0,0.00036986,31]
[400044578,1767049845812,-196.211853,0.00036986,31]
[400044579,1767049845822,-166.565019,0.00036986,31]
[400044580,1767049845832,-166.565019,0.00036986,31]
[400044581,1767049845841,-166.565019,0.00036986,31]
[400044582,1767049845850,-166.565019,0.00036986,31]
[400044583,1767049845860,-1003.0,0.00037,15]
[400044584,1767049845869,-3636.83,0.00037,2]
[400044585,1767049845878,-428.75043089,0.0003708,30]
[400044586,1767049845888,-153.28459,0.00037088,30]
[400044587,1767049845898,-153.28459,0.00037288,30]
[400044588,1767049845908,-153.28459,0.00037488,30]
[400044589,1767049845918,-153.28459,0.00037688,30]
[400044590,1767049845929,-166.86,0.00037863,2]
[400044591,1767049845938,-150.0,0.00037863,2]
[400044592,1767049845950,-150.0,0.00037863,2]
[400044593,1767049845961,-150.0,0.00037863,2]
[400044594,1767049845971,-150.0,0.00037863,2]
[400044595,1767049845980,-150.0,0.00037863,2]
[400044596,1767049845992,-36.40679064,0.00037863,2]
[400044597,1767049846138,-113.59320936,0.00037863,2]
[400044598,1767049846148,-150.0,0.00037863,2]
[400044599,1767049846158,-150.0,0.00037863,2]
[400044600,1767049846167,-150.0,0.00037863,2]
[400044601,1767049846176,-150.0,0.00037863,2]
[400044602,1767049846186,-150.0,0.00037863,2]
[400044603,1767049846196,-150.0,0.00037863,2]
[400044604,1767049846205,-150.0,0.00037863,2]
[400044605,1767049846215,-153.28459,0.00037888,30]
[400044606,1767049846225,-435.43769329,0.00038047,2]
[400044607,1767049846235,-153.28459,0.00038088,30]
[400044608,1767049846244,-3636.83,0.000382,2]
[400044609,1767049846255,-153.28459,0.00038288,30]
[400044610,1767049846264,-300.0,0.00038301,2]
[400044611,1767049846274,-510.9,0.00038356,41]
[400044612,1767049846284,-518.1,0.00038356,17]
[400044613,1767049846296,-569.7,0.00038356,27]
[400044614,1767049846306,-507.6,0.00038356,45]
[400044615,1767049846316,-511.2,0.00038356,49]
[400044616,1767049846326,-528.6,0.00038356,37]
[400044617,1767049846336,-484.8,0.00038356,39]
[400044618,1767049846345,-689.7,0.00038356,41]
[400044619,1767049846355,-623.7,0.00038356,22]
[400044620,1767049846365,-659.1,0.00038356,43]
[400044621,1767049846375,-584.4,0.00038356,22]
[400044622,1767049846386,-707.4,0.00038356,21]
[400044623,1767049846396,-549.6,0.00038356,23]
[400044624,1767049846406,-623.7,0.00038356,39]
[400044625,1767049846416,-458.1,0.00038356,42]
[400044626,1767049846426,-583.8,0.00038356,45]
[400044627,1767049846437,-468.0,0.00038356,39]
[400044628,1767049846447,-592.5,0.00038356,29]
[400044629,1767049846457,-300.0,0.00038356,120]
[400044630,1767049846466,-300.0,0.00038356,120]
[400044631,1767049846475,-300.0,0.00038356,120]
[400044632,1767049846484,-300.0,0.00038356,120]
[400044633,1767049846495,-300.0,0.00038356,120]
[400044634,1767049846504,-300.0,0.00038356,120]
[400044635,1767049846514,-300.0,0.00038356,120]
[400044636,1767049846523,-300.0,0.00038356,120]
[400044637,1767049846534,-300.0,0.00038356,120]
[400044638,1767049846544,-300.0,0.00038356,120]
[400044639,1767049846553,-300.0,0.00038356,120]
[400044640,1767049846564,-300.0,0.00038356,120]
[400044641,1767049846574,-300.0,0.00038356,120]
[400044642,1767049846583,-300.0,0.00038356,120]
[400044643,1767049846593,-300.0,0.00038356,120]
[400044644,1767049846602,-300.0,0.00038356,120]
[400044645,1767049846611,-300.0,0.00038356,120]
[400044646,1767049846621,-300.0,0.00038356,120]
[400044647,1767049846631,-300.0,0.00038356,120]
[400044648,1767049846640,-300.0,0.00038356,120]
[400044649,1767049846650,-300.0,0.00038356,120]
[400044650,1767049846660,-300.0,0.00038356,120]
[400044651,1767049846669,-300.0,0.00038356,120]
[400044652,1767049846679,-300.0,0.00038356,120]
[400044653,1767049846689,-300.0,0.00038356,120]
[400044654,1767049846698,-153.28459,0.00038488,30]
[400044655,1767049846708,-150.0,0.00038573,5]
[400044656,1767049846718,-300.0,0.00038574,10]
[400044657,1767049846728,-304.3664977,0.00038575,2]
[400044658,1767049846737,-303.58705004,0.00038575,2]
[400044659,1767049846746,-595.39568782,0.00038575,2]
[400044660,1767049846756,-364.18164659,0.00038575,2]
[400044661,1767049846765,-303.20169357,0.00038575,2]
[400044662,1767049846774,-577.5673783,0.00038575,2]
[400044663,1767049846784,-1321.648778,0.00038575,2]
[400044664,1767049846794,-615.54397854,0.00038575,2]
[400044665,1767049846803,-304.3664977,0.00038575,2]
[400044666,1767049846813,-484.40337288,0.00038575,2]
[400044667,1767049846823,-595.39568782,0.00038575,2]
[400044668,1767049846832,-364.18164659,0.00038575,2]
[400044669,1767049846842,-303.20169357,0.00038575,2]
[400044670,1767049846852,-577.5673783,0.00038575,2]
[400044671,1767049846862,-1321.648778,0.00038575,2]
[400044672,1767049846872,-615.54397854,0.00038575,2]
[400044673,1767049846882,-304.3664977,0.00038575,2]
[400044674,1767049846892,-595.39568782,0.00038575,2]
[400044675,1767049846902,-364.18164659,0.00038575,2]
[400044676,1767049846911,-421.17005081,0.00038575,2]
[400044677,1767049846920,-577.5673783,0.00038575,2]
[400044678,1767049846930,-1321.648778,0.00038575,2]
[400044679,1767049846940,-615.54397854,0.00038575,2]
[400044680,1767049846952,-304.3664977,0.00038575,2]
[400044681,1767049846964,-595.39568782,0.00038575,2]
[400044682,1767049846975,-364.1816466,0.00038575,2]
[400044683,1767049846986,-577.5673783,0.00038575,2]
[400044684,1767049846998,-1321.648778,0.00038575,2]
[400044685,1767049847009,-615.54397854,0.00038575,2]
[400044686,1767049847019,-416.81873309,0.00038575,2]
[400044687,1767049847029,-595.39568782,0.00038575,2]
[400044688,1767049847040,-577.5673783,0.00038575,2]
[400044689,1767049847053,-1321.648778,0.00038575,2]
[400044690,1767049847062,-615.54397854,0.00038575,2]
[400044691,1767049847073,-1321.648778,0.00038611,2]
[400044692,1767049847082,-615.54397854,0.00038611,2]
[400044693,1767049847091,-998.49414534,0.00038611,2]
[400044694,1767049847101,-820.72530479,0.00038611,2]
[400044695,1767049847110,-153.28459,0.00038688,30]
[400044696,1767049847119,-151.0,0.00038904,14]
[400044697,1767049847128,-1002.198113,0.00038904,120]
[400044698,1767049847138,-1002.198113,0.00038904,120]
[400044699,1767049847147,-1002.198113,0.00038904,120]
[400044700,1767049847156,-1002.198113,0.00038904,120]
[400044701,1767049847165,-151.0,0.00038904,120]
[400044702,1767049847174,-151.0,0.00038904,10]
[400044703,1767049847183,-151.0,0.00038904,30]
[400044704,1767049847193,-256.265413,0.00038904,120]
[400044705,1767049847202,-7361.15,0.00038904,2]
[400044706,1767049847212,-658.74,0.00038921,2]
[400044707,1767049847221,-2064.72973751,0.00038948,3]
[400044708,1767049847230,-151.0,0.00038948,120]
[400044709,1767049847240,-1174.84828301,0.00038976,2]
[400044710,1767049847249,-153.28459,0.00039088,30]
[400044711,1767049847259,-288.94675694,0.00039111,2]
[400044712,1767049847269,-250.0,0.00039121,5]
[400044713,1767049847278,-1398.0,0.000392,2]
[400044714,1767049847287,-153.0,0.000392,30]
[400044715,1767049847296,-3636.83,0.000392,30]
[400044716,1767049847306,-3646.0,0.000392,14]
[400044717,1767049847315,-150.0,0.00039277,2]
[400044718,1767049847325,-1750.22891336,0.00039277,2]
[400044719,1767049847335,-150.0,0.00039277,2]
[400044720,1767049847344,-440.33566681,0.00039277,2]
[400044721,1767049847354,-150.0,0.00039277,2]
[400044722,1767049847363,-630.67654072,0.00039277,2]
[400044723,1767049847372,-153.28459,0.00039288,30]
[400044724,1767049847382,-254.13060141,0.00039372,2]
[400044725,1767049847391,-21533.81068004,0.00039382,2]
[400044726,1767049847400,-153.28459,0.00039488,30]
[400044727,1767049847409,-2264.49,0.00039648,55]
[400044728,1767049847420,-226.46,0.00039654,2]
[400044729,1767049847429,-300.0,0.00039664,2]
[400044730,1767049847438,-201.06982274,0.00039668,5]
[400044731,1767049847447,-153.28459,0.00039688,30]
[400044732,1767049847457,-781.5,0.00039748,6]
[400044733,1767049847467,-652.17603394,0.00039822,2]
[400044734,1767049847476,-6481.47369544,0.00039822,15]
[400044735,1767049847486,-153.28459,0.00039888,30]
[400044736,1767049847495,-3646.0,0.000399,14]
[400044737,1767049847504,-12993.65836159,0.0003998,2]
[400044738,1767049847883,-335.715562,0.0002,2]
[400044739,1767049847894,-912.0,0.00020676,2]
[400044740,1767049847904,-385.174438,0.00023676,2]
[400044741,1767049847915,-526.825562,0.00023676,2]
[400044742,1767049847925,-473.174438,0.00026676,2]
[400044743,1767049848047,-438.825562,0.00026676,2]
[400044744,1767049848056,-912.0,0.00029676,2]
[400044745,1767049848066,-76.0913478,0.00032676,2]
[400044746,1767049848077,-481.7296522,0.00032676,2]
[400044747,1767049848087,-1284.26052951,0.0003998,2]
[400044748,1767049848098,-2353.88008,0.0003998,2]
[400044749,1767049848109,-44630.55089683,0.0003998,2]
[400044750,1767049848118,-151.0,0.0003998,120]
[400044751,1767049848127,-208.95938,0.0003998,120]
[400044752,1767049848142,-208.95938,0.0003998,120]
[400044753,1767049848151,-208.95938,0.0003998,120]
[400044754,1767049848161,-208.95938,0.0003998,120]
[400044755,1767049848170,-151.0,0.0003998,120]
[400044756,1767049848179,-151.0,0.0003998,7]
[400044757,1767049848188,-151.0,0.0003998,7]
[400044758,1767049848198,-151.0,0.0003998,120]
[400044759,1767049848207,-151.0,0.0003998,2]
[400044760,1767049848216,-151.0,0.0003998,2]
[400044761,1767049848225,-151.0,0.0003998,2]
[400044762,1767049848234,-151.0,0.0003998,120]
[400044763,1767049848243,-151.0,0.0003998,120]
[400044764,1767049848252,-151.0,0.0003998,120]
[400044765,1767049848261,-422.845317,0.0003998,120]
[400044766,1767049848270,-422.845317,0.0003998,120]
[400044767,1767049848280,-422.845317,0.0003998,120]
[400044768,1767049848289,-422.845317,0.0003998,120]
[400044769,1767049848301,-151.0,0.0003998,120]
[400044770,1767049848312,-151.0,0.0003998,120]
[400044771,1767049848322,-151.0,0.0003998,120]
[400044772,1767049848334,-151.0,0.0003998,120]
[400044773,1767049848345,-151.0,0.0003998,120]
[400044774,1767049848355,-151.0,0.0003998,120]
[400044775,1767049848365,-512.038497,0.0003998,120]
[400044776,1767049848375,-512.038497,0.0003998,120]
[400044777,1767049848384,-512.038497,0.0003998,120]
[400044778,1767049848394,-512.038497,0.0003998,120]
[400044779,1767049848402,-151.0,0.0003998,120]
[400044780,1767049848411,-151.0,0.0003998,120]
[400044781,1767049848421,-166.565019,0.0003998,120]
[400044782,1767049848430,-166.565019,0.0003998,120]
[400044783,1767049848439,-166.565019,0.0003998,120]
[400044784,1767049848449,-166.565019,0.0003998,120]
[400044785,1767049848458,-1311.970666,0.0003998,120]
[400044786,1767049848468,-1311.970666,0.0003998,120]
[400044787,1767049848478,-1311.970666,0.0003998,120]
[400044788,1767049848488,-1311.970666,0.0003998,120]
[400044789,1767049848500,-3692.397139,0.0003998,28]
[400044790,1767049848509,-3692.397139,0.0003998,28]
[400044791,1767049848519,-3692.397139,0.0003998,28]
[400044792,1767049848528,-2349.07755336,0.0003998,28]
[400044793,1767049848540,-1343.31958564,0.0003998,28]
[400044794,1767049848549,-151.0,0.0003998,120]
[400044795,1767049848558,-151.0,0.0003998,120]
[400044796,1767049848567,-151.0,0.0003998,120]
[400044797,1767049848576,-177.31700743,0.0004,7]
[400044798,1767049848586,-152.0,0.0004,120]
[400044799,1767049848595,-161.0,0.0004,120]
[400044800,1767049848604,-200.0,0.0004,120]
[400044801,1767049848613,-2001.33522138,0.0004,25]
[400044802,1767049848622,-300.09960492,0.0004,10]
[400044803,1767049848631,-253.0,0.0004,30]
[400044804,1767049848640,-7324.88778,0.0004,2]
[400044805,1767049848649,-7324.88777,0.0004,2]
[400044806,1767049848658,-7324.88778,0.0004,2]
[400044807,1767049848667,-7324.88777,0.0004,2]
[400044808,1767049848676,-7324.88778,0.0004,2]
[400044809,1767049848686,-7324.88777,0.0004,2]
[400044810,1767049848695,-7324.88777,0.0004,2]
[400044811,1767049848704,-7324.88778,0.0004,2]
[400044812,1767049848713,-7324.88778,0.0004,2]
[400044813,1767049848724,-7324.88778,0.0004,2]
[400044814,1767049848735,-2500.0,0.0004,120]
[400044815,1767049848745,-700.0,0.0004,120]
[400044816,1767049848755,-151.0,0.0004,120]
[400044817,1767049848767,-151.0,0.0004,120]
[400044818,1767049848778,-320.144082,0.0004,120]
[400044819,1767049848788,-320.144082,0.0004,120]
[400044820,1767049848798,-320.144082,0.0004,120]
[400044821,1767049848809,-151.0,0.0004,120]
[400044822,1767049848820,-320.144082,0.0004,120]
[400044823,1767049848831,-151.0,0.0004,120]
[400044824,1767049848842,-151.0,0.0004,120]
[400044825,1767049848853,-151.0,0.0004,120]
[400044826,1767049848862,-153.28459,0.00040088,30]
[400044827,1767049848871,-3636.83,0.000401,30]
[400044828,1767049848881,-153.28459,0.00040288,30]
[400044829,1767049848890,-300.0,0.00040321,2]
[400044830,1767049848900,-300.0,0.00040373,2]
[400044831,1767049848909,-160.85,0.00040375,120]
[400044832,1767049848918,-301.19,0.00040411,2]
[400044833,1767049848927,-1220.9,0.00040411,2]
[400044834,1767049848936,-150.0,0.00040411,2]
[400044835,1767049848946,-300.0,0.00040411,2]
[400044836,1767049848958,-1221.52,0.00040411,2]
[400044837,1767049848967,-300.0,0.00040411,2]
[400044838,1767049848977,-1221.52,0.00040411,2]
[400044839,1767049848986,-1221.52,0.00040411,2]
[400044840,1767049848995,-1219.04,0.00040411,2]
[400044841,1767049849003,-153.28459,0.00040488,30]
[400044842,1767049849013,-200.0,0.0004055,2]
[400044843,1767049849023,-200.0,0.0004055,2]
[400044844,1767049849034,-200.0,0.0004055,2]
[400044845,1767049849044,-200.0,0.0004055,2]
[400044846,1767049849053,-200.0,0.0004055,2]
[400044847,1767049849062,-200.0,0.0004055,2]
[400044848,1767049849072,-200.0,0.0004055,2]
[400044849,1767049849081,-200.0,0.0004055,2]
[400044850,1767049849091,-200.0,0.0004055,2]
[400044851,1767049849100,-200.0,0.0004055,2]
[400044852,1767049849109,-200.0,0.0004055,2]
[400044853,1767049849119,-200.0,0.0004055,2]
[400044854,1767049849129,-200.0,0.0004055,2]
[400044855,1767049849139,-200.0,0.0004055,2]
[400044856,1767049849148,-200.0,0.0004055,2]
[400044857,1767049849159,-200.0,0.0004055,2]
[400044858,1767049849168,-200.0,0.0004055,2]
[400044859,1767049849180,-200.0,0.0004055,2]
[400044860,1767049849190,-200.0,0.0004055,2]
[400044861,1767049849199,-200.0,0.0004055,2]
[400044862,1767049849209,-200.0,0.0004055,2]
[400044863,1767049849220,-200.0,0.0004055,2]
[400044864,1767049849230,-200.0,0.0004055,2]
[400044865,1767049849240,-200.0,0.0004055,2]
[400044866,1767049849249,-200.0,0.0004055,2]
[400044867,1767049849259,-200.0,0.0004055,2]
[400044868,1767049849269,-200.0,0.0004055,2]
[400044869,1767049849279,-200.0,0.0004055,2]
[400044870,1767049849299,-200.0,0.0004055,2]
[400044871,1767049849309,-200.0,0.0004055,2]
[400044872,1767049849319,-200.0,0.0004055,2]
[400044873,1767049849329,-200.0,0.0004055,2]
[400044874,1767049849339,-200.0,0.0004055,2]
[400044875,1767049849348,-200.0,0.0004055,2]
[400044876,1767049849358,-200.0,0.0004055,2]
[400044877,1767049849369,-200.0,0.0004055,2]
[400044878,1767049849380,-156.0,0.0004055,2]
[400044879,1767049849389,-300.0,0.00040569,2]
[400044880,1767049849398,-152.0,0.000406,120]
[400044881,1767049849409,-161.0,0.000406,120]
[400044882,1767049849419,-3646.0,0.000406,14]
[400044883,1767049849428,-300.0,0.00040607,2]
[400044884,1767049849438,-153.28459,0.00040688,30]
[400044885,1767049849448,-298.75,0.00040701,2]
[400044886,1767049849458,-153.0,0.000408,30]
[400044887,1767049849468,-153.28459,0.00040888,30]
[400044888,1767049849478,-300.0,0.0004098,2]
[400044889,1767049849489,-10830.13981171,0.00041,24]
[400044890,1767049849501,-952.31370534,0.00041,2]
[400044891,1767049849511,-199.999999,0.00041,2]
[400044892,1767049849519,-253.0,0.00041,34]
[400044893,1767049849529,-300.0,0.00041048,2]
[400044894,1767049849539,-150.0,0.00041068,22]
[400044895,1767049849550,-153.28459,0.00041088,30]
[400044896,1767049849559,-1000.0,0.00041095,2]
[400044897,1767049849570,-1000.0,0.00041095,2]
[400044898,1767049849580,-1000.0,0.00041095,2]
[400044899,1767049849591,-1000.0,0.00041095,2]